bitfinex-derivatives/quotes_BNBF0:USTF0_20251027
["timestamp","ask_amount","ask_price","bid_price","bid_amount"]
[1761549960880,0.14981499,1162.4,1160.3,0.5743274]
[1761549961076,0.14981499,1162.4,1160.1,1.937]
[1761549961277,0.14981499,1162.4,1160.2,0.57432773]
[1761549961580,0.14981499,1162.4,1160.3,0.57432773]
[1761549961780,0.14981499,1162.4,1160.1,1.937]
[1761549962075,0.14981499,1162.4,1160.2,0.57459723]
[1761549962277,0.14981499,1162.4,1160.1,1.937]
[1761549962480,0.14981499,1162.4,1160.2,0.57535413]
[1761549962677,0.14981499,1162.4,1160.1,1.937]
[1761549962877,0.14981499,1162.4,1160.2,0.57535462]
[1761549963077,0.14981499,1162.4,1160.1,1.937]
[1761549963276,0.14981499,1162.4,1160.2,2.15366631]
[1761549963576,0.14981499,1162.4,1160.2,1.578]
[1761549972383,0.14981499,1162.4,1160.3,1.986]
[1761549988592,0.14981499,1162.4,1160.4,1.414]
[1761549992195,0.14981499,1162.4,1160.5,1.644]
[1761550010221,0.14981499,1162.4,1160.0,1.79]
[1761550010422,0.14981499,1162.4,1160.1,0.57811837]
[1761550010718,0.14981499,1162.4,1160.1,1.951]
[1761550013425,0.14981499,1162.4,1160.2,1.584]
[1761550016521,0.14981499,1162.4,1160.3,0.5780801]
[1761550016821,0.14981499,1162.4,1160.2,1.584]
[1761550017722,2.1308109,1162.1,1160.2,1.584]
[1761550024532,3.13295029,1162.4,1160.2,1.584]
[1761550025229,0.14981499,1162.4,1160.2,1.584]
[1761550029532,0.14981499,1162.4,1160.1,1.951]
[1761550029933,0.14981499,1162.4,1160.2,0.57917376]
[1761550030130,0.14981499,1162.4,1160.1,1.951]
[1761550030334,0.14981499,1162.4,1160.2,0.5791882]
[1761550030535,0.14981499,1162.4,1160.1,1.951]
[1761550031638,0.14981499,1162.4,1160.0,1.79]
[1761550031938,0.14981499,1162.4,1160.1,1.9641802]
[1761550032134,0.14981499,1162.4,1160.1,1.385]
[1761550034037,0.14981499,1162.4,1160.2,1.404]
[1761550040746,0.14981499,1162.4,1160.3,2.027]
[1761550052753,0.14981499,1162.4,1160.2,1.404]
[1761550055149,0.14981499,1162.4,1160.3,1.302]
[1761550062957,2.1308109,1162.0,1160.3,1.302]
[1761550064561,2.1308109,1162.1,1160.3,1.302]
[1761550066558,2.1308109,1162.2,1160.3,1.302]
[1761550068161,2.1308109,1161.4,1160.3,1.302]
[1761550068565,2.1308109,1161.5,1160.3,1.302]
[1761550069666,5.1139462,1161.9,1160.3,1.302]
[1761550069962,2.1308109,1161.9,1160.3,1.302]
[1761550070166,2.1308109,1162.2,1160.3,1.302]
[1761550070766,2.1308109,1162.0,1160.3,1.302]
[1761550072866,2.1308109,1162.1,1160.3,1.302]
[1761550073973,2.1308109,1162.2,1160.3,1.302]
[1761550074966,0.14981499,1162.4,1160.3,1.302]
[1761550086180,0.14981499,1162.4,1160.4,1.666]
[1761550088379,0.14981499,1162.4,1160.5,2.127]
[1761550090386,2.1308109,1162.3,1160.5,2.127]
[1761550091080,0.14981499,1162.4,1160.5,2.127]
[1761550092986,0.14981499,1162.4,1160.6,1.846]
[1761550096191,2.1308109,1164.1,1160.6,1.846]
[1761550096492,0.14981628,1162.6,1160.6,1.846]
[1761550096889,2.1308109,1164.3,1160.6,1.846]
[1761550097090,0.1497892,1162.8,1160.7,0.57230854]
[1761550097290,2.1308109,1163.7,1160.8,0.57230854]
[1761550097490,2.1308109,1163.7,1160.6,1.846]
[1761550097686,2.9831353,1164.3,1160.7,0.57182558]
[1761550097687,0.14979887,1162.8,1160.7,0.57182558]
[1761550097891,2.1308109,1163.9,1160.8,0.57182558]
[1761550098090,0.14979242,1162.8,1160.6,1.846]
[1761550098292,0.14979242,1162.8,1160.7,0.57179047]
[1761550098588,2.1308109,1164.3,1160.8,0.57179047]
[1761550098792,0.14978597,1162.9,1160.6,1.846]
[1761550098987,2.1308109,1164.3,1160.7,0.57136953]
[1761550099190,0.14977792,1162.9,1160.8,0.57136953]
[1761550099391,0.14977792,1162.9,1160.6,1.846]
[1761550099588,2.1308109,1164.2,1160.7,0.57083258]
[1761550099791,2.9831353,1164.8,1160.6,1.846]
[1761550099792,0.14976921,1163.0,1160.8,0.57083258]
[1761550099989,2.1308109,1163.9,1160.9,0.57083258]
[1761550100288,2.1308109,1163.7,1160.6,1.846]
[1761550100489,0.14977759,1163.2,1160.7,0.57040756]
[1761550100692,0.14977759,1163.2,1160.8,0.57040756]
[1761550100889,0.14977759,1163.2,1160.9,0.57040756]
[1761550101088,0.14977759,1163.2,1160.6,1.846]
[1761550101290,0.14977759,1163.2,1160.7,0.57037628]
[1761550101489,0.14977759,1163.2,1160.8,0.57037628]
[1761550101691,0.14977759,1163.2,1160.9,0.57037628]
[1761550101994,0.14977759,1163.2,1160.6,1.846]
[1761550102192,0.14977759,1163.2,1160.7,0.57010044]
[1761550102391,0.14977759,1163.2,1160.8,0.57010044]
[1761550102592,0.14977759,1163.2,1160.6,1.846]
[1761550103094,0.14977759,1163.2,1160.7,0.57005418]
[1761550103297,0.14977759,1163.2,1160.8,0.57005418]
[1761550103597,0.14977759,1163.2,1160.6,1.846]
[1761550103895,0.14977759,1163.2,1160.7,0.56965542]
[1761550104096,0.14977759,1163.2,1160.8,0.56965542]
[1761550104298,0.14977759,1163.2,1160.6,1.846]
[1761550104598,0.14977759,1163.2,1160.7,0.56939889]
[1761550104791,0.14977759,1163.2,1160.8,0.56939889]
[1761550104994,0.14977759,1163.2,1160.6,1.846]
[1761550105194,0.14977759,1163.2,1160.7,0.56939889]
[1761550105393,0.14977759,1163.2,1160.8,0.56939889]
[1761550105598,0.14977759,1163.2,1160.6,1.846]
[1761550105795,0.14977759,1163.2,1160.7,0.56918655]
[1761550105999,0.14977759,1163.2,1160.8,0.56918655]
[1761550106195,0.14977759,1163.2,1160.6,1.846]
[1761550106399,0.14977759,1163.2,1160.7,0.56900438]
[1761550106596,0.14977759,1163.2,1160.6,1.846]
[1761550106597,0.14977759,1163.2,1160.8,0.56900438]
[1761550106795,0.14977759,1163.2,1160.6,1.846]
[1761550107099,0.14977759,1163.2,1160.7,0.56903554]
[1761550107297,0.14977759,1163.2,1160.8,0.56903554]
[1761550107600,0.14977759,1163.2,1160.6,1.846]
[1761550107896,0.14977759,1163.2,1160.7,0.56885794]
[1761550108101,0.14977759,1163.2,1160.8,0.56885794]
[1761550108298,0.14977759,1163.2,1160.6,1.846]
[1761550108502,0.14977759,1163.2,1160.7,0.56870281]
[1761550108703,0.14977759,1163.2,1160.8,0.56870281]
[1761550108905,0.14977759,1163.2,1160.6,1.846]
[1761550109203,0.14977759,1163.2,1160.7,0.56870297]
[1761550109403,0.14977759,1163.2,1160.8,0.56870297]
[1761550109701,0.14977759,1163.2,1160.6,1.846]
[1761550109905,0.14977759,1163.2,1160.7,0.56855813]
[1761550110103,0.14977759,1163.2,1160.8,0.56855813]
[1761550110298,0.14977759,1163.2,1160.6,1.846]
[1761550110500,0.14977759,1163.2,1160.7,0.56880645]
[1761550110700,0.14977759,1163.2,1160.6,1.846]
[1761550110899,0.14977759,1163.2,1160.7,0.56882473]
[1761550111106,0.14977759,1163.2,1160.8,0.56882473]
[1761550111304,0.14977759,1163.2,1160.5,2.127]
[1761550111504,0.14977759,1163.2,1160.6,0.56867102]
[1761550111704,0.14977759,1163.2,1160.7,0.56867102]
[1761550111900,0.14977759,1163.2,1160.5,2.127]
[1761550112504,0.14977759,1163.2,1160.6,0.56865808]
[1761550112703,0.14977759,1163.2,1160.7,0.56865808]
[1761550112905,0.14977759,1163.2,1160.8,2.05]
[1761550116108,0.14977759,1163.2,1160.9,0.57201565]
[1761550116308,0.14977759,1163.2,1160.8,2.05]
[1761550116509,0.14977759,1163.2,1160.9,0.57184203]
[1761550116809,0.14977759,1163.2,1160.8,2.05]
[1761550117010,0.14977759,1163.2,1160.9,0.57184142]
[1761550117305,0.14977759,1163.2,1160.8,2.05]
[1761550117509,0.14977759,1163.2,1160.9,0.57173837]
[1761550117708,0.14977759,1163.2,1160.8,2.05]
[1761550117911,0.14977759,1163.2,1160.9,0.57175603]
[1761550118107,0.14977759,1163.2,1160.8,2.05]
[1761550118411,0.14977759,1163.2,1160.9,0.57166485]
[1761550118606,0.14977759,1163.2,1160.8,2.05]
[1761550118804,0.14977759,1163.2,1160.9,0.57165124]
[1761550119109,0.14977759,1163.2,1160.8,2.05]
[1761550119309,0.14977759,1163.2,1160.9,0.57157089]
[1761550119510,0.14977759,1163.2,1160.8,2.05]
[1761550119707,0.14977759,1163.2,1160.9,0.57157066]
[1761550119908,0.14977759,1163.2,1160.8,2.05]
[1761550120213,0.14977759,1163.2,1160.9,0.57157099]
[1761550120414,0.14977759,1163.2,1160.8,2.05]
[1761550120609,0.14977759,1163.2,1160.9,0.57147627]
[1761550120812,0.14977759,1163.2,1160.8,2.05]
[1761550121112,0.14977759,1163.2,1160.9,0.57139621]
[1761550121309,0.14977759,1163.2,1160.8,2.05]
[1761550121512,0.14977759,1163.2,1160.9,0.57132533]
[1761550121711,0.14977759,1163.2,1160.8,2.05]
[1761550121910,0.14977759,1163.2,1160.9,0.57126217]
[1761550122111,0.14977759,1163.2,1160.8,2.05]
[1761550122312,0.14977759,1163.2,1160.9,0.57121834]
[1761550122511,0.14977759,1163.2,1160.8,2.05]
[1761550122710,0.14977759,1163.2,1160.9,0.57122603]
[1761550122917,0.14977759,1163.2,1160.8,2.05]
[1761550123113,0.14977759,1163.2,1160.9,0.57124384]
[1761550123314,0.14977759,1163.2,1160.8,2.05]
[1761550123510,0.14977759,1163.2,1160.9,0.5713878]
[1761550123714,0.14977759,1163.2,1160.8,2.05]
[1761550125613,0.14977759,1163.2,1160.9,1.829]
[1761550131023,0.14977759,1163.2,1161.0,1.324]
[1761550145736,2.1308109,1162.9,1161.0,1.324]
[1761550146334,3.13291289,1163.2,1161.0,1.324]
[1761550146335,2.1308109,1162.7,1161.0,1.324]
[1761550146838,2.1308109,1162.6,1161.0,1.324]
[1761550148440,2.1308109,1162.9,1161.0,1.324]
[1761550148838,2.9831353,1163.0,1161.0,1.324]
[1761550149037,0.14977759,1163.2,1161.0,1.324]
[1761550149642,0.14977759,1163.2,1161.1,1.572]
[1761550149838,2.28058849,1163.2,1161.1,1.572]
[1761550150840,2.1308109,1162.6,1161.1,1.572]
[1761550151342,2.9831353,1163.1,1161.1,1.572]
[1761550152142,0.14977759,1163.2,1161.1,1.572]
[1761550152339,2.28058849,1163.2,1161.1,1.572]
[1761550153540,0.14977759,1163.2,1161.1,1.572]
[1761550154646,0.14977759,1163.2,1161.2,1.459]
[1761550157048,2.1308109,1162.9,1161.2,1.459]
[1761550157646,2.1308109,1162.8,1161.2,1.459]
[1761550158149,2.1308109,1162.6,1161.2,1.459]
[1761550158646,2.1308109,1162.5,1161.2,1.459]
[1761550160846,2.1308109,1162.4,1161.2,1.459]
[1761550161445,2.1308109,1163.1,1161.2,1.459]
[1761550161846,0.14977759,1163.2,1161.2,1.459]
[1761550161847,0.14977759,1163.2,1161.3,0.574658]
[1761550162045,0.14977759,1163.2,1161.2,1.459]
[1761550162249,0.14977759,1163.2,1161.3,0.57470973]
[1761550162447,0.14977759,1163.2,1161.2,1.459]
[1761550162650,0.14977759,1163.2,1161.3,0.57448613]
[1761550162950,0.14977759,1163.2,1161.2,1.459]
[1761550163250,0.14977759,1163.2,1161.3,0.5743337]
[1761550163451,0.14977759,1163.2,1161.2,1.459]
[1761550163751,0.14977759,1163.2,1161.3,0.57403928]
[1761550163949,0.14977759,1163.2,1161.2,1.459]
[1761550164147,0.14977759,1163.2,1161.3,0.57409165]
[1761550164352,0.14977759,1163.2,1161.2,1.459]
[1761550164549,0.14977759,1163.2,1161.3,0.57385058]
[1761550164753,0.14977759,1163.2,1161.2,1.459]
[1761550164950,0.14977759,1163.2,1161.3,0.57384999]
[1761550165248,0.14977759,1163.2,1161.2,1.459]
[1761550165452,0.14977759,1163.2,1161.3,0.57362591]
[1761550165752,0.14977759,1163.2,1161.2,1.459]
[1761550166350,0.14977759,1163.2,1161.3,0.57341511]
[1761550166550,0.14977759,1163.2,1161.2,1.459]
[1761550166749,0.14977759,1163.2,1161.3,0.57341432]
[1761550166949,0.14977759,1163.2,1161.2,1.459]
[1761550167150,0.14977759,1163.2,1161.3,0.5734623]
[1761550167352,0.14977759,1163.2,1161.2,1.459]
[1761550171755,0.14977759,1163.2,1161.3,1.675]
[1761550179367,0.14977759,1163.2,1161.4,1.446]
[1761550190375,0.14977759,1163.2,1161.3,1.675]
[1761550192180,0.14977759,1163.2,1161.4,1.61]
[1761550200085,2.1308109,1165.2,1161.4,1.61]
[1761550200287,0.14969899,1163.3,1161.4,1.61]
[1761550200486,0.14969899,1163.3,1161.5,1.27]
[1761550200684,2.1308109,1165.1,1161.5,1.27]
[1761550200989,0.14968933,1163.3,1161.5,1.27]
[1761550201189,2.1308109,1165.1,1161.5,1.27]
[1761550201489,0.14969287,1163.3,1161.5,1.27]
[1761550201788,2.1308109,1165.0,1161.5,1.27]
[1761550201987,0.14969319,1163.3,1161.5,1.27]
[1761550202386,2.1308109,1164.6,1161.5,1.27]
[1761550202590,0.14970994,1163.3,1161.5,1.27]
[1761550202986,2.1308109,1164.8,1161.5,1.27]
[1761550203188,0.14971445,1163.2,1161.5,1.27]
[1761550203491,2.1308109,1164.8,1161.5,1.27]
[1761550203791,0.149708,1163.2,1161.5,1.27]
[1761550204091,2.1308109,1165.0,1161.5,1.27]
[1761550204287,0.14970156,1163.2,1161.5,1.27]
[1761550204488,2.1308109,1165.0,1161.5,1.27]
[1761550204889,0.14970156,1163.2,1161.5,1.27]
[1761550205088,2.1308109,1165.0,1161.5,1.27]
[1761550205291,2.1308109,1164.9,1161.5,1.27]
[1761550205591,0.14970156,1163.2,1161.5,1.27]
[1761550205787,2.1308109,1164.9,1161.5,1.27]
[1761550205989,0.14970478,1163.2,1161.5,1.27]
[1761550206193,2.1308109,1164.9,1161.5,1.27]
[1761550206594,0.149708,1163.2,1161.5,1.27]
[1761550206896,2.1308109,1164.9,1161.6,1.869]
[1761550207096,0.149708,1163.2,1161.6,1.869]
[1761550207296,2.1308109,1164.9,1161.6,1.869]
[1761550207597,0.14970478,1163.2,1161.6,1.869]
[1761550207897,2.1308109,1164.6,1161.6,1.869]
[1761550208395,0.149708,1163.2,1161.6,1.869]
[1761550208596,2.1308109,1164.6,1161.6,1.869]
[1761550208794,0.14971445,1163.2,1161.6,1.869]
[1761550209097,2.1308109,1164.3,1161.6,1.869]
[1761550209397,0.14971767,1163.1,1161.6,1.869]
[1761550209596,2.1308109,1164.5,1161.6,1.869]
[1761550209894,0.14972862,1163.0,1161.6,1.869]
[1761550210297,2.1308109,1164.3,1161.6,1.869]
[1761550210495,0.14973506,1163.0,1161.6,1.869]
[1761550210694,2.1308109,1164.3,1161.6,1.869]
[1761550211096,0.14973506,1163.0,1161.6,1.869]
[1761550211296,2.1308109,1164.3,1161.6,1.869]
[1761550211495,0.14973506,1163.7,1161.6,1.869]
[1761550213700,2.28054596,1163.7,1161.6,1.869]
[1761550214196,0.14973506,1163.7,1161.6,1.869]
[1761550214598,2.1308109,1163.4,1161.6,1.869]
[1761550215801,2.1308109,1163.5,1161.6,1.869]
[1761550216201,2.28054596,1163.7,1161.6,1.869]
[1761550216701,0.14973506,1163.7,1161.6,1.869]
[1761550217202,2.28054596,1163.7,1161.6,1.869]
[1761550217803,0.14973506,1163.7,1161.6,1.869]
[1761550219802,2.1308109,1162.9,1161.6,1.869]
[1761550220303,2.1308109,1162.7,1161.6,1.869]
[1761550220906,2.1308109,1162.6,1161.5,1.27]
[1761550222306,2.1308109,1162.7,1161.5,1.27]
[1761550222806,2.9831353,1163.0,1161.5,1.27]
[1761550224106,2.1308109,1162.5,1161.5,1.27]
[1761550224609,2.1308109,1162.6,1161.5,1.27]
[1761550226407,2.1308109,1162.7,1161.5,1.27]
[1761550226905,2.1308109,1162.6,1161.5,1.27]
[1761550227611,2.1308109,1162.7,1161.5,1.27]
[1761550228711,2.1308109,1163.3,1161.3,1.277]
[1761550229608,2.1308109,1163.2,1161.3,1.277]
[1761550230611,3.13287036,1163.7,1161.3,1.277]
[1761550230908,0.14973506,1163.7,1161.3,1.277]
[1761550232311,2.1308109,1163.5,1161.3,1.277]
[1761550232814,2.1308109,1163.4,1161.3,1.277]
[1761550233211,2.28054596,1163.7,1161.3,1.277]
[1761550233714,2.1308109,1163.2,1161.3,1.277]
[1761550234215,2.1308109,1162.7,1161.3,1.277]
[1761550234912,2.1308109,1162.5,1161.3,1.277]
[1761550235313,2.1308109,1162.4,1161.3,1.277]
[1761550236315,2.1308109,1162.6,1161.3,1.277]
[1761550237917,2.1308109,1162.5,1161.3,1.277]
[1761550238416,2.1308109,1162.6,1161.3,1.277]
[1761550239420,2.1308109,1162.7,1161.3,1.277]
[1761550240619,2.9831353,1163.1,1161.3,1.277]
[1761550241220,0.14973506,1163.7,1161.3,1.277]
[1761550245323,2.1308109,1163.5,1161.3,1.277]
[1761550245917,2.1308109,1162.9,1161.3,1.277]
[1761550246217,2.1308109,1163.3,1161.3,1.12704104]
[1761550246423,2.1308109,1163.3,1159.8,1.399]
[1761550246723,2.1308109,1163.1,1159.8,1.399]
[1761550246925,2.9831353,1163.6,1159.8,1.399]
[1761550247524,2.1308109,1165.2,1159.8,1.399]
[1761550249220,0.14993182,1163.9,1159.8,1.399]
[1761550252623,2.9831353,1163.7,1159.8,1.399]
[1761550252821,2.1308109,1163.2,1159.8,1.399]
[1761550253720,2.1308109,1163.3,1159.8,1.399]
[1761550254226,2.1308109,1163.2,1159.8,1.399]
[1761550254521,2.1308109,1163.3,1159.8,1.399]
[1761550255526,2.28074272,1163.9,1159.8,1.399]
[1761550256524,0.14993182,1163.9,1159.8,1.399]
[1761550256925,2.28074272,1163.9,1159.8,1.399]
[1761550259033,2.1308109,1163.8,1159.8,1.399]
[1761550259734,2.1308109,1163.6,1159.8,1.399]
[1761550260730,2.1308109,1162.7,1159.6,1.672]
[1761550261230,2.1308109,1162.6,1159.6,1.672]
[1761550262735,2.1308109,1163.1,1159.6,1.672]
[1761550264236,2.1308109,1163.2,1159.6,1.672]
[1761550264840,2.1308109,1163.1,1159.6,1.672]
[1761550265238,2.1308109,1163.0,1159.6,1.672]
[1761550265741,2.1308109,1163.2,1159.6,1.672]
[1761550266241,2.1308109,1163.1,1159.6,1.672]
[1761550267343,2.1308109,1163.0,1159.6,1.672]
[1761550267940,2.1308109,1163.2,1159.6,1.672]
[1761550268343,2.9831353,1163.8,1159.6,1.672]
[1761550268344,2.1308109,1163.0,1159.6,1.672]
[1761550268946,2.1308109,1163.1,1159.6,1.672]
[1761550269144,2.1308109,1163.3,1159.6,1.672]
[1761550269744,2.1308109,1163.2,1159.6,1.672]
[1761550270148,2.1308109,1163.1,1159.6,1.672]
[1761550270649,2.1308109,1162.3,1159.6,1.672]
[1761550271247,2.1308109,1162.1,1159.6,1.672]
[1761550271751,2.1308109,1162.2,1159.6,1.672]
[1761550272354,2.1308109,1162.3,1159.6,1.672]
[1761550274352,2.1308109,1161.9,1159.6,1.672]
[1761550275552,2.1308109,1161.8,1159.6,1.672]
[1761550275952,2.1308109,1161.7,1159.6,1.672]
[1761550276956,2.1308109,1161.8,1159.6,1.672]
[1761550278464,2.9831353,1162.2,1159.6,1.672]
[1761550279163,2.1308109,1162.8,1159.6,1.672]
[1761550281061,2.1308109,1162.7,1159.6,1.672]
[1761550281762,2.1308109,1161.8,1159.6,1.672]
[1761550282659,2.1308109,1161.6,1159.6,1.672]
[1761550283165,2.1308109,1161.7,1159.6,1.672]
[1761550283664,2.1308109,1161.4,1159.6,1.672]
[1761550284263,2.1308109,1161.5,1159.6,1.672]
[1761550284760,2.1308109,1161.6,1159.6,1.672]
[1761550285360,2.1308109,1161.8,1159.6,1.672]
[1761550285661,2.1308109,1162.6,1159.6,1.672]
[1761550285861,2.1308109,1162.6,1159.5,3.445]
[1761550286660,2.1308109,1162.5,1159.5,3.445]
[1761550287160,2.1308109,1162.1,1159.5,3.445]
[1761550287761,2.1308109,1161.8,1159.5,3.445]
[1761550288165,2.1308109,1162.0,1159.5,3.445]
[1761550288762,2.1308109,1161.9,1159.5,3.445]
[1761550289160,2.1308109,1161.5,1159.5,1.905]
[1761550290167,2.1308109,1161.4,1159.5,1.905]
[1761550291267,2.1308109,1161.3,1159.5,1.905]
[1761550291863,2.1308109,1162.3,1159.5,1.905]
[1761550292468,2.1308109,1162.1,1159.5,1.905]
[1761550292669,5.1139462,1162.1,1159.5,1.905]
[1761550292868,2.1308109,1161.4,1159.5,1.905]
[1761550293164,2.1308109,1161.4,1158.9,1.564]
[1761550293363,2.1308109,1161.8,1158.9,1.564]
[1761550294565,2.1308109,1161.7,1158.9,1.564]
[1761550295566,2.1308109,1161.6,1158.9,1.564]
[1761550296066,2.1308109,1161.7,1158.9,1.564]
[1761550297666,2.1308109,1161.9,1158.9,1.564]
[1761550299672,2.1308109,1161.8,1158.9,1.564]
[1761550300168,2.1308109,1161.5,1158.9,1.564]
[1761550301167,2.1308109,1161.4,1158.9,1.564]
[1761550303375,2.1308109,1161.2,1158.9,1.564]
[1761550303874,2.1308109,1161.1,1158.9,1.564]
[1761550304472,2.1308109,1160.9,1158.9,1.564]
[1761550304677,2.1308109,1160.9,1158.7,1.979]
[1761550305477,2.1308109,1161.0,1158.7,1.979]
[1761550305974,2.1308109,1160.9,1158.7,1.979]
[1761550306371,2.1308109,1160.7,1158.7,1.979]
[1761550306872,2.1308109,1160.4,1158.7,1.979]
[1761550309181,2.1308109,1160.5,1158.7,1.979]
[1761550309678,2.1308109,1160.3,1158.7,1.979]
[1761550310178,2.9831353,1160.7,1158.7,1.979]
[1761550310379,4.2849482,1161.4,1158.7,1.979]
[1761550311479,2.1308109,1162.1,1158.7,1.979]
[1761550315386,2.1308109,1160.3,1158.7,1.979]
[1761550315882,2.1308109,1159.9,1158.7,1.979]
[1761550316486,2.1308109,1160.2,1158.7,1.979]
[1761550316983,2.1308109,1159.8,1158.7,0.4999996]
[1761550317386,2.1308109,1159.4,1158.7,0.4999996]
[1761550317581,2.1308109,1159.4,1158.6,1.906]
[1761550318583,5.1139462,1159.7,1158.6,1.906]
[1761550318782,2.1308109,1159.7,1158.6,1.906]
[1761550318981,2.1308109,1159.8,1158.6,1.906]
[1761550319486,2.1308109,1159.9,1158.6,1.906]
[1761550319683,2.1308109,1159.9,1158.6,0.8245976]
[1761550319888,2.9831353,1159.6,1158.6,0.8245976]
[1761550320088,2.1308109,1159.2,1158.6,0.8245976]
[1761550320285,2.1308109,1159.2,1158.6,0.23659349]
[1761550320789,2.1308109,1159.1,1158.6,0.23659349]
[1761550321593,2.1308109,1159.3,1158.6,0.23659349]
[1761550322093,2.1308109,1159.8,1158.6,0.23659349]
[1761550322692,2.1308109,1160.0,1158.6,0.23659349]
[1761550323389,2.1308109,1160.1,1158.6,0.23659349]
[1761550323588,2.1308109,1160.2,1158.6,0.23659349]
[1761550323889,2.1308109,1159.7,1158.6,0.23659349]
[1761550324489,2.1308109,1159.8,1158.6,0.23659349]
[1761550324890,2.1308109,1160.1,1158.6,0.23659349]
[1761550326095,2.1308109,1160.2,1158.6,0.23659349]
[1761550326997,2.1308109,1160.3,1158.6,0.23659349]
[1761550327997,2.1308109,1159.4,1158.6,0.23659349]
[1761550328593,2.9831353,1159.7,1158.6,0.23659349]
[1761550328995,5.1139462,1159.7,1158.6,0.23659349]
[1761550329296,2.1308109,1159.7,1158.6,0.23659349]
[1761550329699,2.9831353,1160.1,1158.6,0.23659349]
[1761550329700,2.1308109,1159.8,1158.6,0.23659349]
[1761550330700,2.1308109,1159.9,1158.6,0.23659349]
[1761550331101,2.9831353,1160.2,1158.6,0.23659349]
[1761550331300,2.1308109,1160.3,1158.6,0.23659349]
[1761550332802,2.1308109,1160.4,1158.6,0.23659349]
[1761550334201,2.1308109,1160.5,1158.6,0.23659349]
[1761550337006,2.1308109,1160.3,1158.6,0.23659349]
[1761550337907,2.1308109,1160.6,1158.6,0.23659349]
[1761550338512,2.1308109,1160.7,1158.6,0.23659349]
[1761550339006,2.1308109,1160.6,1158.6,0.23659349]
[1761550340710,2.1308109,1160.3,1158.6,0.23659349]
[1761550341010,2.1308109,1160.5,1158.6,0.23659349]
[1761550341606,2.1308109,1160.1,1158.6,0.23659349]
[1761550342206,2.1308109,1160.2,1158.6,0.23659349]
[1761550343206,2.1308109,1160.2,1157.2,1.493]
[1761550343613,2.9831353,1160.7,1157.2,1.493]
[1761550343913,2.9831353,1160.4,1157.2,1.493]
[1761550344212,2.1308109,1160.0,1157.2,1.493]
[1761550344811,2.1308109,1160.1,1157.2,1.493]
[1761550345714,2.1308109,1159.6,1157.2,1.493]
[1761550346209,2.9831353,1160.5,1157.2,1.493]
[1761550346210,2.1308109,1160.0,1157.2,1.493]
[1761550347615,2.1308109,1160.0,1157.0,1.473]
[1761550347911,2.1308109,1160.1,1155.4,0.7803591]
[1761550348116,2.1308109,1160.1,1155.5,0.57976406]
[1761550348315,2.1308109,1160.1,1155.6,0.57976406]
[1761550348511,2.1308109,1160.1,1155.7,0.57976406]
[1761550348714,2.1308109,1160.1,1155.8,2.65276406]
[1761550348914,2.1308109,1160.1,1155.9,0.57976406]
[1761550349112,2.1308109,1160.1,1156.0,0.57976406]
[1761550349310,2.1308109,1160.1,1155.8,2.073]
[1761550349611,2.1308109,1159.7,1155.9,2.07250395]
[1761550349811,2.1308109,1159.7,1155.9,1.493]
[1761550350511,2.1308109,1160.0,1156.0,1.648]
[1761550350915,2.9831353,1160.2,1156.0,1.648]
[1761550351111,2.1308109,1160.3,1156.0,1.648]
[1761550354617,2.1308109,1160.6,1156.0,1.648]
[1761550356121,2.1308109,1160.3,1156.0,1.648]
[1761550356822,2.1308109,1160.4,1156.0,1.648]
[1761550358220,2.1308109,1160.3,1156.0,1.648]
[1761550359825,2.1308109,1160.3,1156.1,0.57818199]
[1761550360020,2.1308109,1160.2,1156.0,1.648]
[1761550360632,2.1308109,1159.6,1156.1,0.57837776]
[1761550360822,2.1308109,1159.6,1156.0,1.648]
[1761550361022,2.1308109,1159.6,1156.1,0.57853036]
[1761550361224,2.1308109,1159.5,1156.0,1.648]
[1761550361422,2.1308109,1159.5,1156.1,0.57889401]
[1761550361624,2.1308109,1159.5,1156.0,1.648]
[1761550362120,2.1308109,1159.4,1156.0,1.648]
[1761550362625,2.1308109,1159.4,1156.1,0.57924424]
[1761550362925,2.1308109,1159.4,1156.0,1.648]
[1761550363225,2.9831353,1159.8,1156.1,0.57922854]
[1761550363425,2.9831353,1159.8,1156.2,0.57922854]
[1761550363624,2.1308109,1159.9,1156.0,1.648]
[1761550363822,2.1308109,1159.9,1156.1,0.5794771]
[1761550364027,2.1308109,1159.9,1156.2,0.5794771]
[1761550364225,2.1308109,1159.8,1156.0,1.648]
[1761550364425,2.1308109,1159.8,1156.1,0.57998373]
[1761550364721,2.1308109,1159.8,1156.2,0.57998373]
[1761550364925,2.1308109,1159.8,1156.0,1.648]
[1761550365220,2.1308109,1159.7,1156.1,0.57997717]
[1761550365424,2.1308109,1159.7,1156.2,0.57997717]
[1761550365625,2.1308109,1159.7,1156.0,1.648]
[1761550365823,2.1308109,1160.1,1156.1,0.58053362]
[1761550366022,2.1308109,1160.1,1156.0,1.648]
[1761550366325,2.1308109,1159.8,1156.1,0.58110017]
[1761550366524,2.1308109,1159.8,1156.0,1.648]
[1761550366722,2.1308109,1159.8,1156.1,0.58113895]
[1761550366923,2.1308109,1159.8,1156.0,1.648]
[1761550367124,2.1308109,1159.8,1156.1,0.58107804]
[1761550367328,2.1308109,1159.9,1156.0,1.648]
[1761550367624,2.1308109,1159.9,1156.1,0.58148522]
[1761550367829,2.1308109,1159.8,1156.0,1.648]
[1761550368124,2.1308109,1159.8,1156.1,0.58146464]
[1761550368329,2.1308109,1159.9,1156.0,1.648]
[1761550368526,2.1308109,1159.9,1156.1,0.58190511]
[1761550368724,2.1308109,1159.9,1156.0,1.648]
[1761550369027,2.1308109,1159.8,1156.1,0.58190307]
[1761550369226,2.1308109,1159.8,1156.0,1.648]
[1761550369430,2.1308109,1159.7,1156.0,1.648]
[1761550369830,2.1308109,1159.6,1156.0,1.648]
[1761550370430,2.1308109,1159.5,1156.0,1.648]
[1761550371026,2.1308109,1159.6,1156.0,1.648]
[1761550371232,2.1308109,1159.6,1156.1,0.58300977]